[Event "Romanian Team Blitz Open 2022"]
[Site "Sebes"]
[Date "2022.12.04"]
[Round "6.10"]
[White "Daianu, Cristian-Clement"]
[Black "Ionescu, Mihai"]
[Result "0-1"]
[ECO "C24"]
[WhiteElo "2189"]
[BlackElo "2243"]
[Annotator "TA"]
[PlyCount "118"]
[EventDate "2022.12.04"]
[EventType "blitz"]
[EventCountry "ROU"]
[SourceTitle "playchess.com"]
[Source "ChessBase"]
[SourceQuality "1"]
[TimeControl "180+2"]

{[%evp 9,118,17,29,21,34,-28,-14,-16,-6,-9,8,-15,0,0,-11,-24,0,0,0,0,0,0,0,-8,12,0,0,-42,0,-20,0,-11,-11,-49,-60,-55,-29,-36,-42,-98,-90,-85,-16,-18,-28,-38,-33,-38,-62,-70,-11,-25,0,0,0,0,12,-8,0,0,0,0,0,0,0,0,0,-11,0,0,209,0,0,0,0,0,0,-11,0,0,0,0,0,0,0,0,0,0,0,0,0,-8,-8,-10,0,-29969,-29973,-29973,-29974,-29974,-29975,-29974,-29975,-29975,-29976,-29976,-29977,-29979,-29980,-29980,-29981]} 1. e4 {[%emt 0:00:02]} e5 {[%emt 0:00:02]} 2. Bc4 {[%emt 0:00:02]} Nf6 {[%emt 0:00:01]} 3. d3 {[%emt 0:00:00]} c6 {[%emt 0:00:02]} 4. Nf3 {[%emt 0:00:02]} d5 {[%emt 0:00:01]} 5. Bb3 {[%emt 0:00:01]} a5 {[%emt 0:00:12]} 6. a4 {[%emt 0:00:16] C24: Bishop's Opening: 2...Nf6.} (6. Nxe5 $2 {too greedy.} a4 7. Bxd5 cxd5 8. exd5 Bb4+ 9. Bd2 Nxd5 $19) 6... Bd6 {[%emt 0:00:11]} 7. Nbd2 {[%emt 0:00:14]} (7. exd5 $14 cxd5 8. O-O) 7... O-O $11 {[%emt 0:00:06]} 8. O-O {[%emt 0:00:02] [#] The position is equal.} Na6 $146 {[%emt 0:00:25]} ({Predecessor:} 8... Nbd7 9. c3 Bc7 10. Re1 Nc5 11. Bc2 dxe4 12. Nxe4 Nfxe4 13. dxe4 Qxd1 {½-½ (13) Broehl,S (2087)-Wolf,A (2138) Germany 2018}) 9. Re1 {[%emt 0:00:07]} Re8 {[%emt 0:00:07]} 10. c3 {[%emt 0:00:14]} Bg4 {[%emt 0:00:20]} 11. h3 {[%emt 0:00:06]} Bh5 {[%emt 0:00:01]} 12. Bc2 {[%emt 0:00:02]} dxe4 {[%emt 0:00:16]} 13. dxe4 {[%emt 0:00:01]} Bc7 {[%emt 0:00:07]} 14. Qe2 {[%emt 0:00:02]} Nc5 {[%emt 0:00:05][%cal Ba6c5,Bc5e6,Be6f4][%mdl 32]} 15. Nf1 {[%emt 0:00:02]} Ne6 {[%emt 0:00:06]} 16. Ng3 {[%emt 0:00:06]} Bg6 {[%emt 0:00:03]} 17. Nh2 {[%emt 0:01:04]} Nf4 {[%emt 0:00:04]} 18. Qf3 {[%emt 0:00:01]} (18. Qc4 {with more complications.} Bb6 19. Nf3 Qc7 20. Be3) 18... Bb6 {[%emt 0:00:10]} 19. Be3 {[%emt 0:00:01]} Qc7 {[%emt 0:00:09]} 20. Ng4 {[%emt 0:00:02]} Nxg4 {[%emt 0:00:02]} 21. Qxg4 {[%emt 0:00:05]} Bxe3 {[%emt 0:00:10]} 22. fxe3 {[%emt 0:00:05]} Ne6 {[%emt 0:00:02]} (22... Qb6 $5 {[%cal Rb6b2]}) 23. Nf5 {[%emt 0:00:02]} Rad8 {[%emt 0:00:11]} 24. h4 {[%emt 0:00:08]} ({White should play} 24. Qe2 $15) 24... Rd2 {[%emt 0:00:07] ...h5 is the strong threat.} 25. Re2 {[%emt 0:00:11]} Red8 {[%emt 0:00:09]} (25... h5 $17 26. Qf3 Red8) 26. h5 {[%emt 0:00:06]} Rxe2 {[%emt 0:00:04]} (26... Bxf5 {simplifies} 27. exf5 Rxe2 28. Qxe2 Ng5) 27. Qxe2 {[%emt 0:00:07]} Bxf5 {[%emt 0:00:02]} 28. exf5 {[%emt 0:00:01]} Ng5 {[%emt 0:00:06]} 29. h6 {[%emt 0:00:06]} Qb6 {[%emt 0:00:11]} (29... gxh6 $15 30. f6 Kh8) 30. hxg7 {[%emt 0:00:06]} f6 {[%emt 0:00:09]} 31. Rb1 {[%emt 0:00:25]} Kxg7 {[%emt 0:00:03]} 32. b4 {[%emt 0:00:00]} Qc7 {[%emt 0:00:01]} 33. Kf2 {[%emt 0:00:08]} axb4 {[%emt 0:00:01]} 34. cxb4 {[%emt 0:00:02][%cal Bc3b4,Bb4b5][%mdl 32]} Qd6 {[%emt 0:00:01]} 35. Rd1 {[%emt 0:00:02]} Qc7 {[%emt 0:00:01]} 36. Rxd8 {[%emt 0:00:03]} Qxd8 {[%emt 0:00:01][%mdl 4096] Endgame KQB-KQN} 37. Bb3 {[%emt 0:00:01]} Qd6 {[%emt 0:00:01]} 38. b5 {[%emt 0:00:02]} Ne4+ {[%emt 0:00:02]} 39. Kg1 {[%emt 0:00:01]} Qd8 $2 {[%emt 0:00:04]} (39... cxb5 $11 40. Qxb5 Nc5) 40. Qg4+ $2 (40. Qc4 $18 Nd6 41. Qg4+ Kh6 42. bxc6) 40... Ng5 {[%emt 0:00:26]} 41. Qe2 {[%emt 0:00:05]} Qd6 {[%emt 0:00:00]} 42. bxc6 {[%emt 0:00:02]} Qxc6 {[%emt 0:00:00]} 43. a5 {[%emt 0:00:04]} Qc5 {[%emt 0:00:00]} (43... Qc3 {looks sharper.} 44. Bd5 Qxa5 45. Bxb7 Qa1+) 44. Qd2 {[%emt 0:00:03]} Kh6 {[%emt 0:00:00]} 45. Kh2 {[%emt 0:00:03]} e4 {[%emt 0:00:00]} 46. Be6 {[%emt 0:00:01]} Qe5+ {[%emt 0:00:00]} 47. Kg1 {[%emt 0:00:01]} Nxe6 {[%emt 0:00:00]} 48. fxe6 {[%emt 0:00:01]} Qxe6 {[%emt 0:00:00] KQ-KQ} 49. Qb4 {[%emt 0:00:01]} Qd5 {[%emt 0:00:00]} 50. Qb6 {[%emt 0:00:01]} Kg5 {[%emt 0:00:00]} 51. Kh2 {[%emt 0:00:01]} Kg4 {[%emt 0:00:00] aiming for ...Qe5+.} 52. Qc7 {[%emt 0:00:01][%mdl 8192] [#]} (52. Qxf6 $11 Qh5+ 53. Kg1 Qxa5 54. Qf4+ Kh5 55. Qf7+ Kh6 56. Qe6+ Kh5 57. Qe8+ Kh6 58. Qxe4) 52... Qe5+ {[%emt 0:00:00] Black mates.} 53. Qxe5 {[%emt 0:00:01]} fxe5 {[%emt 0:00:00] KP-KP} 54. Kg1 {[%emt 0:00:01]} Kg3 {[%emt 0:00:00]} 55. Kf1 {[%emt 0:00:01]} h5 56. Kg1 h4 {[%emt 0:00:00]} 57. Kf1 {[%emt 0:00:03] [#]} h3 $1 {[%emt 0:00:00]} 58. gxh3 {[%emt 0:00:01]} Kxh3 {[%emt 0:00:00]} 59. Kf2 {[%emt 0:00:02]} Kh2 {[%emt 0:00:02] Weighted Error Value: White=0.24 (precise) /Black=0.16 (very precise)} 0-1

[Event "Romanian Team Blitz Open 2022"]
[Site "Sebes"]
[Date "2022.12.04"]
[Round "6.11"]
[White "Dragomirescu, Calin"]
[Black "Vrencian, Lehel"]
[Result "0-1"]
[ECO "D27"]
[WhiteElo "1971"]
[BlackElo "2226"]
[Annotator "TA"]
[PlyCount "60"]
[EventDate "2022.12.04"]
[EventType "blitz"]
[EventCountry "ROU"]
[SourceTitle "playchess.com"]
[Source "ChessBase"]
[SourceQuality "1"]
[TimeControl "180+2"]

{[%evp 14,60,37,42,28,-45,-59,-72,-69,-69,-67,-190,-190,-219,-234,-290,-104,-112,-81,-286,-281,-274,-187,-212,-195,-207,-151,-257,-271,-280,-175,-729,-321,-718,-712,-660,-281,-1287,-1285,-1416,-1430,-2427,-1966,-29993,-29987,-29985,-29979,-29986,-29987]} 1. d4 {[%emt 0:00:02]} d5 {[%emt 0:00:01]} 2. Nf3 {[%emt 0:00:01]} Nf6 {[%emt 0:00:01]} 3. c4 {[%emt 0:00:01]} dxc4 {[%emt 0:00:01]} 4. e3 {[%emt 0:00:01]} e6 {[%emt 0:00:00]} 5. Bxc4 {[%emt 0:00:01]} a6 {[%emt 0:00:01]} 6. O-O {[%emt 0:00:03]} Nbd7 {[%emt 0:00:01]} 7. a4 {[%emt 0:00:04]} c5 {[%emt 0:00:03]} 8. Nc3 {[%emt 0:00:03]} Bd6 {[%emt 0:00:03] [#] D27: Queen's Gambit Accepted: Classical main line: 7 e4!? and 7 a4.} 9. d5 $146 {[%emt 0:00:07]} ({White should try} 9. dxc5 $11 Bxc5 10. Qe2) ({Predecessor:} 9. Qe2 Qc7 10. Rd1 O-O 11. a5 cxd4 12. exd4 b5 13. axb6 Nxb6 14. Bd3 Bb7 15. Bg5 Nbd5 16. Nxd5 Nxd5 17. Bxa6 {½-½ (42) Hoang,T (2485)-Peptan,C (2422) Tromsoe 2014}) 9... Nb6 $15 {[%emt 0:00:01]} 10. Ba2 {[%emt 0:00:07]} Nbxd5 {[%emt 0:00:03] Black is more active. Black is better.} 11. Nxd5 {[%emt 0:00:05]} exd5 {[%emt 0:00:02][%cal Be6d5,Bd5e4][%mdl 32]} 12. e4 {[%emt 0:00:12]} (12. Bd2 $15) 12... dxe4 $19 {[%emt 0:00:11]} (12... Nxe4 $2 13. Qxd5 O-O 14. Qxe4 $18) 13. Ng5 {[%emt 0:00:01]} O-O {[%emt 0:00:06]} 14. Be3 {[%emt 0:00:18]} h6 $2 {[%emt 0:00:20]} (14... Qc7 $19 {and Black stays clearly on top. Strongly threatening ...h6.} 15. Rc1 Bxh2+ 16. Kh1 Bd6) 15. Nxf7 $17 {[%emt 0:00:03]} ({Don't go for} 15. Bxc5 $2 Bxc5 16. Bxf7+ Kh8 17. Qxd8 Rxd8 $19) 15... Rxf7 {[%emt 0:00:03]} 16. Rc1 $2 {[%emt 0:00:07] [#]} (16. Bxc5 $17 Be7 17. Rc1) 16... Qe7 $1 $19 {[%emt 0:00:41]} 17. Qb3 {[%emt 0:00:25] Prevents Be6.} Bf5 {[%emt 0:00:42]} 18. Rfd1 {[%emt 0:00:15]} Bg6 {[%emt 0:00:04] And now ...Ng4 would win.} 19. Qb6 {[%emt 0:00:10]} Rd8 {[%emt 0:00:29][%cal Od8d7] Threatens to win with ...Rd7!} 20. Bxf7+ {[%emt 0:00:02]} (20. Bxc5 $17 Bc7 21. Bxe7 Rxd1+ 22. Rxd1 Bxb6 23. Bxf6 gxf6 24. Rd6) 20... Bxf7 {[%emt 0:00:02]} ({And not} 20... Kxf7 21. Bxc5 Ne8 22. Bxd6 Rxd6 23. Rxd6 Qxd6 24. Qxb7+ Kg8 25. Qc6 $11) 21. Bxc5 {[%emt 0:00:22][%cal Rd1d6]} Bc7 {[%emt 0:00:42] [#] aiming for ...Rxd1+.} 22. Qa7 $2 {[%emt 0:00:31]} (22. Bxe7 Rxd1+ 23. Rxd1 Bxb6 24. Bxf6 gxf6 25. Rd6) 22... Rxd1+ {[%emt 0:00:03]} 23. Rxd1 {[%emt 0:00:00]} Qe5 {[%emt 0:00:02][%csl LRb2,LRh2]} 24. g3 {[%emt 0:00:05]} Bh5 {[%emt 0:00:01]} (24... Qh5 $142 25. Rc1 Qf3 26. Qa8+ (26. Qxb7 $2 {loses.} Be6 $19) 26... Kh7) 25. Re1 {[%emt 0:00:21]} (25. Bd4 Qd5 26. Rc1) 25... Bf3 {[%emt 0:00:03]} 26. Qxb7 {[%emt 0:00:13]} Qxc5 {[%emt 0:00:01]} 27. Qc8+ {[%emt 0:00:03]} Kh7 {[%emt 0:00:01] ( -> ...Ng4)} 28. Qe6 {[%emt 0:00:05]} Bb6 {[%emt 0:00:02][%csl Gb6][%cal Rc5f2] Black mates.} 29. Rf1 {[%emt 0:00:04]} a5 {[%emt 0:00:02]} 30. h4 {[%emt 0:00:06]} Be2 {[%emt 0:00:01] Weighted Error Value: White=1.13/Black=0.90} 0-1

[Event "Romanian Team Blitz Open 2022"]
[Site "Sebes"]
[Date "2022.12.04"]
[Round "6.12"]
[White "Craciun, Sasha-Matei"]
[Black "Santimbrean, Mihnea-Nicolae"]
[Result "1-0"]
[ECO "C11"]
[WhiteElo "2001"]
[BlackElo "1491"]
[Annotator "NA COMBH RC"]
[PlyCount "65"]
[EventDate "2022.12.04"]
[EventType "blitz"]
[EventCountry "ROU"]
[SourceTitle "playchess.com"]
[Source "ChessBase"]
[SourceQuality "1"]
[TimeControl "180+2"]

1. e4 {[%emt 0:00:00]} e6 {[%emt 0:00:00]} 2. d4 {[%emt 0:00:01]} d5 {[%emt 0:00:01]} 3. Nc3 {[%emt 0:00:01]} Nf6 {[%emt 0:00:01]} 4. e5 {[%emt 0:00:01]} Nfd7 {[%emt 0:00:01]} 5. f4 {[%emt 0:00:01]} c5 {[%emt 0:00:01]} 6. Nf3 {[%emt 0:00:01]} Nc6 {[%emt 0:00:03]} 7. Be3 {[%emt 0:00:01]} Qb6 {[%emt 0:00:01]} 8. Qd2 {[%emt 0:00:14]} cxd4 9. Nxd4 {[%emt 0:00:01]} Nxd4 {[%emt 0:00:07]} 10. Bxd4 {[%emt 0:00:01]} Bc5 {[%emt 0:00:01]} 11. O-O-O {[%emt 0:00:05]} Bxd4 {[%emt 0:00:06]} 12. Qxd4 {[%emt 0:00:01]} Qxd4 {[%emt 0:00:06]} 13. Rxd4 {[%emt 0:00:01]} Nb6 {[%emt 0:00:12]} 14. h4 {[%emt 0:00:09]} h5 {[%emt 0:00:04]} 15. Be2 {[%emt 0:00:02]} Bd7 {[%emt 0:00:07]} 16. Kd2 {[%emt 0:00:02]} Rc8 {[%emt 0:00:05]} 17. Ke3 {[%emt 0:00:02]} Ke7 {[%emt 0:00:22]} 18. Kd2 {[%emt 0:00:44]} f5 {[%emt 0:00:06]} 19. Rh3 {[%emt 0:00:14]} g6 {[%emt 0:00:09]} 20. Rg3 {[%emt 0:00:01]} Kf7 {[%emt 0:00:02]} 21. b3 {[%emt 0:00:03]} Rc5 {[%emt 0:00:09]} 22. a4 {[%emt 0:00:09]} a6 {[%emt 0:00:14]} 23. Rb4 {[%emt 0:00:04]} Rc6 {[%emt 0:00:05]} 24. a5 {[%emt 0:00:01]} Na8 {[%emt 0:00:18]} 25. Rxb7 {[%emt 0:00:03]} Nc7 {[%emt 0:00:01]} 26. Na4 {[%emt 0:00:11]} Rc8 {[%emt 0:00:23]} 27. Nb6 {[%emt 0:00:03]} Rd8 {[%emt 0:00:13]} 28. Rc3 {[%emt 0:00:14]} Rxc3 {[%emt 0:00:11]} 29. Kxc3 {[%emt 0:00:01]} Ke8 {[%emt 0:00:14]} 30. Rxc7 {[%emt 0:00:02]} d4+ {[%emt 0:00:09]} 31. Kd2 {[%emt 0:00:01]} Bb5 {[%emt 0:00:14]} 32. Bxb5+ {[%emt 0:00:02]} axb5 {[%emt 0:00:02] Check Result:#10} 33. a6 {[%emt 0:00:01]} 1-0

[Event "Romanian Team Blitz Open 2022"]
[Site "Sebes"]
[Date "2022.12.04"]
[Round "6.13"]
[White "Anton, Teodor"]
[Black "Costachi, Mihnea"]
[Result "0-1"]
[ECO "E62"]
[WhiteElo "2438"]
[BlackElo "2476"]
[Annotator "TA"]
[PlyCount "84"]
[EventDate "2022.12.04"]
[EventType "blitz"]
[EventCountry "ROU"]
[SourceTitle "playchess.com"]
[Source "ChessBase"]
[SourceQuality "1"]
[TimeControl "180+2"]

{[%evp 16,84,32,29,37,10,33,16,13,-25,-18,-58,0,-23,-4,-13,-20,-62,-22,-82,0,0,0,0,0,0,-14,-65,0,0,0,0,81,-408,34,26,273,136,141,138,214,118,229,130,121,-255,-266,-339,-345,-336,-333,-329,-325,-462,-469,-458,-458,-539,-540,-531,-505,-615,-587,-607,-598,-779,-783,-779,-770,-725,-553]} 1. Nf3 {[%emt 0:00:01]} Nf6 {[%emt 0:00:01]} 2. g3 {[%emt 0:00:02]} g6 {[%emt 0:00:01]} 3. Bg2 {[%emt 0:00:01]} Bg7 {[%emt 0:00:01]} 4. O-O {[%emt 0:00:02]} O-O {[%emt 0:00:01]} 5. d4 {[%emt 0:00:01][%cal Bd2d4,Bd4d5][%mdl 32]} d6 {[%emt 0:00:01]} 6. c4 {[%emt 0:00:04]} Nc6 {[%emt 0:00:02]} 7. Nc3 {[%emt 0:00:06]} e5 {[%emt 0:00:01]} 8. d5 {[%emt 0:00:07]} Nb8 $1 {[%emt 0:00:02][%mdl 4] is recently more successful than 8...Ne7.} 9. e4 {[%emt 0:00:04]} a5 {[%emt 0:00:01] E62: King's Indian: Fianchetto: 6...c6 and Panno Variation (6...Nc6) without ...a6.} 10. Ne1 {[%emt 0:00:06]} Na6 {[%emt 0:00:02]} 11. Nd3 {[%emt 0:00:02]} Nd7 {[%emt 0:00:07] The position is equal.} 12. f4 {[%emt 0:00:26]} exf4 {[%emt 0:00:13]} 13. gxf4 {[%emt 0:00:04]} Ndc5 {[%emt 0:00:01]} (13... f5 $15) 14. Be3 {[%emt 0:00:22]} Nxd3 {[%emt 0:00:08]} 15. Qxd3 {[%emt 0:00:02]} f5 {[%emt 0:00:02] [#]} 16. Rae1 $146 {[%emt 0:00:18][%cal Oe4e5]} ({Predecessor:} 16. Bd4 Nb4 17. Qd2 Bxd4+ 18. Qxd4 Nc2 19. Qf2 Nxa1 20. e5 dxe5 21. fxe5 Qg5 22. e6 Qg4 23. Ne4 Bxe6 24. h3 fxe4 {0-1 (24) Koubova,A (2094)-Jaufarally,N (1944) Pardubice 2019}) 16... fxe4 {[%emt 0:00:04]} (16... Nb4 $5 {[%cal Rb4d3]} 17. Qd2 fxe4 $11) 17. Bxe4 {[%emt 0:00:07]} (17. Nxe4 $11 Bf5 18. Qd2) 17... Bf5 {[%emt 0:00:25]} (17... Bh3 $17 {White must now prevent ...Nc5.} 18. Rf3 (18. Bg2 Qd7 $15) 18... Qd7) 18. Bxf5 $11 {[%emt 0:00:15]} Rxf5 {[%emt 0:00:01]} 19. Ne4 {[%emt 0:00:05]} Qh4 {[%emt 0:00:47]} 20. Ng3 {[%emt 0:00:05]} Rf7 {[%emt 0:00:05]} 21. f5 {[%emt 0:00:18]} (21. Qd2 $11) 21... Be5 {[%emt 0:00:08] Black is more active.} (21... Nb4 $15 22. Qe2 Re8 23. fxg6 Rxf1+ 24. Qxf1 hxg6) 22. fxg6 {[%emt 0:00:30]} Rg7 $40 {[%emt 0:00:00][%mdl 128] Black has some attack.} 23. gxh7+ {[%emt 0:00:21]} Rxh7 {[%emt 0:00:16]} (23... Kh8 $1 $11 24. Rf3 Bxg3 25. hxg3 Rxg3+ 26. Rxg3 Qxg3+ 27. Kf1 Qf3+ 28. Kg1 Qg3+ 29. Kf1 Qf3+ 30. Kg1 Qg3+) 24. Qg6+ $2 {[%emt 0:00:06][%mdl 8192]} (24. Re2 $16) 24... Rg7 $2 {[%emt 0:00:02]} ({Better is} 24... Kh8 $19 {[%csl Gh7][%cal Rh4h2]} 25. Re2 Rg8) 25. Qe6+ $14 {[%emt 0:00:02]} Kh7 $2 {[%emt 0:00:10] [#]} (25... Kh8 $11 26. Qh6+ Qxh6 27. Bxh6 Rh7) 26. Qf5+ {[%emt 0:00:02]} (26. Bf4 $1 $18 {[%mdl 512]} Rg6 27. Qf7+ Bg7 28. Re7 (28. Re6 Rxe6 29. Qxe6 Rf8 $16)) 26... Kh8 $16 {[%emt 0:00:03] Strongly threatening ...Rxg3+.} 27. Bf4 {[%emt 0:00:10]} Bd4+ {[%emt 0:00:23]} (27... Bxf4 $16 28. Rxf4 Qg5) 28. Kg2 {[%emt 0:00:01]} ({White should play} 28. Kh1 $1 $18 Nc5 29. Qc2) 28... Rag8 {[%emt 0:00:08]} (28... Rh7 $2 29. h3 Rg8 30. Re4 Bxb2 31. Bxd6 $1 $18 {[%mdl 512]}) (28... Qh7 $16 {is a better defense.} 29. Qxh7+ Kxh7) 29. Re6 {[%emt 0:00:02]} (29. Qh3 Qxh3+ 30. Kxh3 Bxb2 $14) ({White should try} 29. Re4 $1 $18 Qf6 30. Bxd6 $1 {[%mdl 512]} Qxf5 31. Rxf5 Bxb2 32. Be7) 29... Rh7 {[%emt 0:00:06]} (29... Bxb2 $2 30. Rh6+ $18) 30. Rh1 {[%emt 0:00:05][%mdl 8192] [#]} (30. Rg6 $16 {[%cal Of4e5] keeps the pressure on. Intending Be5+! and mate.} Rxg6 31. Qxg6 Qh3+ 32. Kf3) 30... Nc5 $1 $19 {[%emt 0:00:02]} ({Weaker is} 30... Bxb2 31. Rhe1 Rh5 32. Qxh5+ Qxh5 33. Rh6+ $11) 31. Rg6 {[%emt 0:00:03]} Rxg6 {[%mdl 64] Deflection} (31... Bxb2 $2 32. Bg5 $18) 32. Qxg6 {[%emt 0:00:01] Threatening mate with Qe8+.} Qxf4 {[%emt 0:00:22][%csl Gd4][%cal Rf4f2] Chess con chili.} 33. Qe8+ {[%emt 0:00:02]} Kg7 {[%emt 0:00:01][%csl Gd4][%cal Rf4f2,Bh8g7,Bg7g8,Bg8g7][%mdl 32]} 34. Qe7+ {[%emt 0:00:01]} (34. Rf1 $142 Qd2+ 35. Ne2 Rxh2+ 36. Kxh2 Be5+ 37. Kh3 Qe3+ 38. Kg2 Qxe2+ 39. Rf2 Qe4+ 40. Kf1 Qxc4+ 41. Kg1 Qc1+ 42. Kg2) 34... Kg8 {[%emt 0:00:05][%csl Gd4][%cal Rf4f2] Black is clearly winning.} 35. Qe8+ {[%emt 0:00:01]} Qf8 {[%emt 0:00:01]} 36. Qg6+ {[%emt 0:00:01]} Rg7 {[%emt 0:00:00][%cal Bh7g7,Bg7f7,Bf7f2,Bf2f3][%mdl 32]} 37. Qc2 {[%emt 0:00:03] Prevents Qf2+.} Rf7 {[%emt 0:00:04]} 38. Qg6+ {[%emt 0:00:04]} Qg7 {[%emt 0:00:01]} 39. Qxg7+ {[%emt 0:00:02]} Kxg7 {[%emt 0:00:01]} 40. h4 {[%emt 0:00:02]} Rf2+ {[%emt 0:00:01]} 41. Kh3 {[%emt 0:00:01]} Be5 {[%emt 0:00:09][%cal Of2f3] ...Rf3! is the strong threat.} ({Not} 41... Rxb2 42. Nf5+ Kh7 43. Nxd4 $17) 42. Rg1 {[%emt 0:00:05]} Rf3 {[%emt 0:00:02] Weighted Error Value: White=0.72/Black=0.51} 0-1

[Event "Romanian Team Blitz Open 2022"]
[Site "Sebes"]
[Date "2022.12.04"]
[Round "6.14"]
[White "Ileana, George"]
[Black "David, Alexandru-Vasile"]
[Result "0-1"]
[ECO "A05"]
[WhiteElo "2343"]
[BlackElo "2404"]
[Annotator "TA"]
[PlyCount "52"]
[EventDate "2022.12.04"]
[EventType "blitz"]
[EventCountry "ROU"]
[SourceTitle "playchess.com"]
[Source "ChessBase"]
[SourceQuality "1"]
[TimeControl "180+2"]

{[%evp 16,52,0,-57,-12,-14,-27,-22,-18,-41,-32,-114,-99,-106,-115,-306,-270,-343,-336,-334,-336,-325,-325,-318,-304,-523,-504,-726,-710,-718,-709,-665,-538,-544,-514,-511,-508,-1031,-1012]} 1. e4 {[%emt 0:00:02]} c5 {[%emt 0:00:02]} 2. Nf3 {[%emt 0:00:02]} d6 {[%emt 0:00:01]} 3. g3 {[%emt 0:00:04]} Nf6 {[%emt 0:00:02]} 4. d3 {[%emt 0:00:01]} g6 {[%emt 0:00:02]} 5. Bg2 {[%emt 0:00:01]} Bg7 {[%emt 0:00:01]} 6. O-O {[%emt 0:00:02]} O-O {[%emt 0:00:02]} 7. c3 {[%emt 0:00:00]} Nc6 {[%emt 0:00:03]} 8. Re1 {[%emt 0:00:01]} e5 {[%emt 0:00:09]} 9. d4 {[%emt 0:00:04] 9.a4 is becoming the main line.} (9. a4 $11) 9... cxd4 {[%emt 0:00:07] A05: Réti Opening: 1 Nf3 Nf6.} 10. cxd4 {[%emt 0:00:01]} Bg4 {[%emt 0:00:07]} 11. d5 {[%emt 0:00:15]} Nd4 {[%emt 0:00:04] The position is equal.} 12. Nc3 {[%emt 0:00:20]} (12. Qd3 {simplifies} Bxf3 13. Bxf3 Nd7 14. Bg2) 12... Nd7 {[%emt 0:00:11][%cal Bf6d7,Bd7e5,Be5f3][%mdl 32]} 13. Be3 {[%emt 0:00:17]} (13. h3 $15 Bxf3 14. Bxf3) 13... f5 $17 {[%emt 0:00:03] [#] Black is more active.} 14. exf5 $146 {[%emt 0:00:27]} ({Predecessor:} 14. Bxd4 exd4 15. Nb5 Bxf3 16. Qxf3 Qb6 17. Qb3 fxe4 18. Bxe4 Nc5 19. Qc4 a6 20. Nxd4 Qxb2 {0-1 (55) Ivekovic,B (2260)-Bilobrk,F (2315) Opatija 1995}) 14... Rxf5 {[%emt 0:00:04]} 15. Bxd4 {[%emt 0:00:20] [#] This costs White the game.} (15. Nxd4 $17 Bxd1 16. Nxf5 gxf5 17. Raxd1) 15... exd4 $19 {[%emt 0:00:01]} 16. Ne4 {[%emt 0:00:05]} Ne5 {[%emt 0:00:11]} (16... Rxd5 17. Qb3 Nb6 18. a4 $18) 17. Ned2 {[%emt 0:00:16]} Nxf3+ {[%emt 0:00:19]} ({But not} 17... Qf8 $2 18. Rxe5 dxe5 19. Qe2 $19) 18. Bxf3 {[%emt 0:00:03] [#]} Rxf3 {[%emt 0:00:01][%mdl 512]} 19. Nxf3 {[%emt 0:00:02][%cal Oh2h3] Strongly threatening h3!} Qf6 {[%emt 0:00:00]} 20. Qb3 {[%emt 0:00:15]} ({Reject} 20. Kg2 Rf8 21. Kg1 Bxf3 $19) (20. Qxd4 {is the only way for White.} Qxf3 21. Qe3) 20... Bxf3 {[%emt 0:00:15] Black is clearly winning.} 21. Qxb7 {[%emt 0:00:02]} Rf8 {[%emt 0:00:02]} 22. Qe7 {[%emt 0:00:24]} Qxe7 {[%emt 0:00:11]} 23. Rxe7 {[%emt 0:00:01]} d3 {[%emt 0:00:01]} (23... Bxd5 $2 {is the wrong capture.} 24. Rd7 $19) 24. Re3 {[%emt 0:00:10]} d2 {[%emt 0:00:13]} 25. Rd3 {[%emt 0:00:01]} Bxb2 {[%emt 0:00:08] A strong pair of Bishops.} 26. Rb1 {[%emt 0:00:05]} (26. Rf1 $142 Bc1 27. Rc3) 26... Bc1 {[%emt 0:00:10] Weighted Error Value: White=0.85/Black=0.16 (very precise)} 0-1